[Event "2nd Turkish League 2017"]
[Site "Konya"]
[Date "2017.07.22"]
[Round "8"]
[White "Kahya, Gizem"]
[Black "Keskin, Suara"]
[Result "1-0"]
[ECO "A24"]
[WhiteElo "1634"]
[BlackElo "1716"]
[Annotator "NA"]
[PlyCount "77"]
[EventType "team-tourn"]
[EventCountry "TUR"]
[SourceTitle "playchess.com"]
[Source "ChessBase"]
[SourceQuality "1"]
[TimeControl "5400+30"]

1. Nf3 {[%emt 0:00:30]} Nf6 {[%emt 0:01:00]} 2. g3 {[%emt 0:00:30]} g6 {[%emt 0:03:30]} 3. c4 {[%emt 0:01:30]} Bg7 {[%emt 0:00:30]} 4. Bg2 {[%emt 0:01:30]} O-O {[%emt 0:01:30]} 5. Nc3 {[%emt 0:00:00]} d6 {[%emt 0:01:30]} 6. O-O {[%emt 0:01:00]} e5 {[%emt 0:00:00]} 7. d3 {[%emt 0:00:30]} c6 {[%emt 0:00:00]} 8. Rb1 {[%emt 0:04:30]} Qe7 {[%emt 0:03:30]} 9. Qc2 {[%emt 0:11:30]} h6 {[%emt 0:08:30]} 10. b4 {[%emt 0:03:30]} d5 {[%emt 0:18:30]} 11. cxd5 {[%emt 0:11:30]} Nxd5 {[%emt 0:02:30]} 12. Nxd5 {[%emt 0:05:30]} cxd5 {[%emt 0:00:00]} 13. e4 {[%emt 0:01:30]} dxe4 {[%emt 0:01:00]} 14. dxe4 {[%emt 0:00:00]} Be6 {[%emt 0:00:30]} 15. Be3 {[%emt 0:05:00]} Rc8 {[%emt 0:02:30]} 16. Qb2 {[%emt 0:02:30]} Nd7 {[%emt 0:02:30]} 17. Rbc1 {[%emt 0:03:30]} Bc4 {[%emt 0:00:30]} 18. Rfd1 {[%emt 0:01:30]} Nb6 {[%emt 0:20:30]} 19. Bxb6 {[%emt 0:10:30]} axb6 {[%emt 0:00:30]} 20. a3 {[%emt 0:00:30]} Rc6 {[%emt 0:08:30]} 21. Rc3 {[%emt 0:10:30]} Rac8 {[%emt 0:02:30]} 22. Rdc1 {[%emt 0:01:30]} Qd7 {[%emt 0:01:30]} 23. Nd2 {[%emt 0:02:30]} Be6 {[%emt 0:07:51]} 24. Rxc6 {[%emt 0:02:55]} bxc6 {[%emt 0:00:05]} 25. Nc4 {[%emt 0:02:23]} Qc7 {[%emt 0:00:05]} 26. Ne3 {[%emt 0:03:00]} Qa7 {[%emt 0:05:10]} 27. Bf1 {[%emt 0:06:37]} Bd7 {[%emt 0:04:02]} 28. Bc4 {[%emt 0:04:29]} Be8 {[%emt 0:00:06]} 29. b5 {[%emt 0:00:13]} cxb5 {[%emt 0:00:12]} 30. Bxf7+ {[%emt 0:00:36]} Bxf7 {[%emt 0:00:51]} 31. Rxc8+ {[%emt 0:00:08]} Kh7 {[%emt 0:00:00]} 32. Nd5 {[%emt 0:02:29]} Bxd5 {[%emt 0:02:20]} 33. exd5 {[%emt 0:00:03]} Qd7 {[%emt 0:00:29]} 34. Qc2 {[%emt 0:00:42]} Qxd5 {[%emt 0:00:52]} 35. Rc6 {[%emt 0:00:51]} e4 {[%emt 0:00:45]} 36. Rxb6 {[%emt 0:00:53]} Qd4 {[%emt 0:00:22]} 37. Re6 {[%emt 0:01:01]} Qa1+ {[%emt 0:01:28]} 38. Kg2 {[%emt 0:00:08]} Qxa3 {[%emt 0:00:21]} 39. Qxe4 {[%emt 0:00:10]} 1-0

[Event "2nd Turkish League 2017"]
[Site "Konya"]
[Date "2017.07.22"]
[Round "8"]
[White "Ilkbahar, Nimet Seray"]
[Black "Hafizoglu, Bengi"]
[Result "1/2-1/2"]
[ECO "B22"]
[WhiteElo "1618"]
[BlackElo "1415"]
[Annotator "NA"]
[PlyCount "73"]
[EventType "team-tourn"]
[EventCountry "TUR"]
[SourceTitle "playchess.com"]
[Source "ChessBase"]
[SourceQuality "1"]
[TimeControl "5400+30"]

1. e4 {[%emt 0:00:30]} c5 {[%emt 0:01:00]} 2. c3 {[%emt 0:00:00]} Nf6 {[%emt 0:00:30]} 3. e5 {[%emt 0:00:00]} Nd5 {[%emt 0:00:00]} 4. Nf3 {[%emt 0:00:30]} Nc6 {[%emt 0:01:00]} 5. d4 {[%emt 0:00:30]} cxd4 {[%emt 0:01:30]} 6. cxd4 {[%emt 0:00:30]} d6 {[%emt 0:04:30]} 7. Bc4 {[%emt 0:00:00]} Nb6 {[%emt 0:00:30]} 8. Bb5 {[%emt 0:00:00]} d5 {[%emt 0:01:30]} 9. h3 {[%emt 0:05:30]} Bf5 {[%emt 0:04:30]} 10. Nc3 {[%emt 0:03:30]} e6 {[%emt 0:01:30]} 11. O-O {[%emt 0:08:30]} Be7 {[%emt 0:01:30]} 12. Bd3 {[%emt 0:02:30]} Bxd3 {[%emt 0:00:30]} 13. Qxd3 {[%emt 0:00:00]} O-O {[%emt 0:01:30]} 14. a3 {[%emt 0:14:00]} Na5 {[%emt 0:05:30]} 15. Nd2 {[%emt 0:06:30]} Nbc4 {[%emt 0:02:30]} 16. b4 {[%emt 0:08:30]} Nxd2 {[%emt 0:01:30]} 17. Bxd2 {[%emt 0:00:30]} Nb3 {[%emt 0:10:30]} 18. Rab1 {[%emt 0:00:30]} Nxd2 {[%emt 0:00:30]} 19. Qxd2 {[%emt 0:00:30]} Rc8 {[%emt 0:00:00]} 20. Rbc1 {[%emt 0:03:30]} Qd7 {[%emt 0:05:00]} 21. Rc2 {[%emt 0:05:30]} Rc4 {[%emt 0:01:30]} 22. Rfc1 {[%emt 0:04:30]} Rfc8 {[%emt 0:01:30]} 23. Nd1 {[%emt 0:03:30]} Qa4 {[%emt 0:15:30]} 24. Ne3 {[%emt 0:05:30]} Rxc2 {[%emt 0:04:30]} 25. Rxc2 {[%emt 0:00:30]} Rxc2 {[%emt 0:01:30]} 26. Nxc2 {[%emt 0:01:30]} Qb3 {[%emt 0:01:30]} 27. g3 {[%emt 0:07:23]} h6 {[%emt 0:05:30]} 28. Kg2 {[%emt 0:02:03]} Bd8 {[%emt 0:02:30]} 29. h4 {[%emt 0:04:05]} Bb6 {[%emt 0:01:30]} 30. Kg1 {[%emt 0:02:56]} Qb1+ {[%emt 0:04:54]} 31. Kg2 {[%emt 0:00:13]} Qb3 {[%emt 0:00:51]} 32. Kg1 {[%emt 0:00:14]} Qb2 {[%emt 0:02:13]} 33. Qd1 {[%emt 0:06:23]} Kf8 {[%emt 0:06:56]} 34. Kf1 {[%emt 0:01:49]} Qc3 {[%emt 0:05:37]} 35. Ke2 {[%emt 0:01:23]} Ke7 {[%emt 0:02:25]} 36. Qd3 {[%emt 0:01:25]} Qxd3+ {[%emt 0:00:30]} 37. Kxd3 {[%emt 0:00:00]} 1/2-1/2

[Event "2nd Turkish League 2017"]
[Site "Konya"]
[Date "2017.07.22"]
[Round "8"]
[White "Catal, Uktenur"]
[Black "Baloglu, Dila"]
[Result "1-0"]
[ECO "A48"]
[WhiteElo "1613"]
[BlackElo "1379"]
[Annotator "NA"]
[PlyCount "92"]
[EventType "team-tourn"]
[EventCountry "TUR"]
[SourceTitle "playchess.com"]
[Source "ChessBase"]
[SourceQuality "1"]
[TimeControl "5400+30"]

1. d4 {[%emt 0:00:30]} g6 {[%emt 0:01:00]} 2. Nf3 {[%emt 0:00:30]} Bg7 {[%emt 0:00:00]} 3. Bf4 {[%emt 0:00:00]} d6 {[%emt 0:00:00]} 4. e3 {[%emt 0:00:00]} Nf6 {[%emt 0:00:00]} 5. h3 {[%emt 0:00:00]} Nbd7 {[%emt 0:02:00]} 6. Be2 {[%emt 0:00:00]} c5 {[%emt 0:02:30]} 7. c3 {[%emt 0:00:30]} b6 {[%emt 0:04:30]} 8. O-O {[%emt 0:00:30]} O-O {[%emt 0:00:30]} 9. a4 {[%emt 0:00:30]} a6 {[%emt 0:03:30]} 10. Nbd2 {[%emt 0:01:30]} Bb7 {[%emt 0:01:30]} 11. Qb3 {[%emt 0:00:30]} Re8 {[%emt 0:08:30]} 12. Rfd1 {[%emt 0:02:30]} Qc7 {[%emt 0:04:30]} 13. Bh2 {[%emt 0:05:30]} Rac8 {[%emt 0:04:30]} 14. Rac1 {[%emt 0:06:30]} Qb8 {[%emt 0:13:30]} 15. Bc4 {[%emt 0:03:30]} e6 {[%emt 0:03:30]} 16. Re1 {[%emt 0:10:30]} Bh6 {[%emt 0:08:30]} 17. Rcd1 {[%emt 0:05:30]} Bf8 {[%emt 0:07:30]} 18. Bd3 {[%emt 0:08:30]} Qa8 {[%emt 0:08:30]} 19. e4 {[%emt 0:07:30]} cxd4 {[%emt 0:03:30]} 20. cxd4 {[%emt 0:00:30]} d5 {[%emt 0:01:30]} 21. e5 {[%emt 0:05:30]} Ne4 {[%emt 0:01:30]} 22. Nf1 {[%emt 0:00:30]} Rc7 {[%emt 0:01:18]} 23. Bf4 {[%emt 0:05:30]} Rec8 {[%emt 0:05:56]} 24. N3h2 {[%emt 0:04:30]} Be7 {[%emt 0:01:32]} 25. f3 {[%emt 0:00:30]} h5 {[%emt 0:05:24]} 26. fxe4 {[%emt 0:01:30]} dxe4 {[%emt 0:00:01]} 27. Bb1 {[%emt 0:01:30]} Bd5 {[%emt 0:01:47]} 28. Qg3 {[%emt 0:02:30]} h4 {[%emt 0:03:01]} 29. Qg4 {[%emt 0:00:30]} Bb4 {[%emt 0:00:44]} 30. Bd2 {[%emt 0:01:30]} Bxd2 {[%emt 0:03:19]} 31. Nxd2 {[%emt 0:00:30]} e3 {[%emt 0:01:15]} 32. Rxe3 {[%emt 0:00:30]} Rc1 {[%emt 0:00:20]} 33. Ree1 {[%emt 0:00:30]} Rxd1 {[%emt 0:00:36]} 34. Rxd1 {[%emt 0:00:30]} Qc6 {[%emt 0:00:13]} 35. Rf1 {[%emt 0:10:43]} Kg7 {[%emt 0:00:55]} 36. Nhf3 {[%emt 0:01:29]} Qxa4 {[%emt 0:00:32]} 37. Qxh4 {[%emt 0:01:38]} Rh8 {[%emt 0:00:32]} 38. Qf4 {[%emt 0:01:02]} Rf8 {[%emt 0:00:32]} 39. Qg4 {[%emt 0:01:14]} Qb4 {[%emt 0:00:26]} 40. Be4 {[%emt 0:08:29]} Qe7 {[%emt 0:00:27]} 41. Bxd5 {[%emt 0:00:58]} exd5 {[%emt 0:00:01]} 42. h4 {[%emt 0:00:17]} a5 {[%emt 0:01:01]} 43. Rc1 {[%emt 0:00:27]} Qd8 {[%emt 0:00:30]} 44. h5 {[%emt 0:00:14]} Rh8 {[%emt 0:00:30]} 45. hxg6 {[%emt 0:00:30]} fxg6 {[%emt 0:00:08]} 46. Ng5 {[%emt 0:00:31]} Kf8 {[%emt 0:00:55]} 1-0

[Event "2nd Turkish League 2017"]
[Site "Konya"]
[Date "2017.07.22"]
[Round "8"]
[White "Alparslan, Melisa Nur"]
[Black "Bolu, Yagmur"]
[Result "0-1"]
[ECO "B07"]
[WhiteElo "1443"]
[BlackElo "1464"]
[Annotator "NA"]
[PlyCount "132"]
[EventType "team-tourn"]
[EventCountry "TUR"]
[SourceTitle "playchess.com"]
[Source "ChessBase"]
[SourceQuality "1"]
[TimeControl "5400+30"]

1. e4 {[%emt 0:00:30]} g6 {[%emt 0:01:00]} 2. d4 {[%emt 0:00:30]} Bg7 {[%emt 0:00:00]} 3. Nf3 {[%emt 0:00:30]} d6 {[%emt 0:00:00]} 4. h3 {[%emt 0:00:30]} Nf6 {[%emt 0:00:30]} 5. Bd3 {[%emt 0:01:30]} O-O {[%emt 0:01:30]} 6. Be3 {[%emt 0:01:30]} c6 {[%emt 0:00:30]} 7. O-O {[%emt 0:01:30]} Qc7 {[%emt 0:01:30]} 8. Nbd2 {[%emt 0:03:30]} Nbd7 {[%emt 0:01:30]} 9. Re1 {[%emt 0:03:30]} Re8 {[%emt 0:01:30]} 10. Nf1 {[%emt 0:05:30]} b5 {[%emt 0:04:30]} 11. Ng3 {[%emt 0:02:30]} Bb7 {[%emt 0:01:30]} 12. Rc1 {[%emt 0:05:30]} a6 {[%emt 0:09:30]} 13. c3 {[%emt 0:05:30]} e5 {[%emt 0:02:30]} 14. Qd2 {[%emt 0:08:30]} Rad8 {[%emt 0:08:30]} 15. Bh6 {[%emt 0:05:30]} d5 {[%emt 0:05:30]} 16. exd5 {[%emt 0:04:30]} Nxd5 {[%emt 0:01:30]} 17. Bxg7 {[%emt 0:04:30]} Kxg7 {[%emt 0:00:30]} 18. dxe5 {[%emt 0:00:30]} Nxe5 {[%emt 0:01:30]} 19. Nxe5 {[%emt 0:00:30]} Rxe5 {[%emt 0:00:30]} 20. Rxe5 {[%emt 0:00:00]} Qxe5 {[%emt 0:00:30]} 21. Re1 {[%emt 0:00:00]} Qc7 {[%emt 0:01:30]} 22. Bc2 {[%emt 0:19:30]} Nf4 {[%emt 0:04:30]} 23. Qe3 {[%emt 0:04:30]} c5 {[%emt 0:02:30]} 24. f3 {[%emt 0:05:44]} Nxh3+ {[%emt 0:07:30]} 25. Kh2 {[%emt 0:01:14]} Nf4 {[%emt 0:00:30]} 26. Qf2 {[%emt 0:01:08]} Nh5 {[%emt 0:05:30]} 27. Re3 {[%emt 0:02:27]} Qxg3+ {[%emt 0:02:30]} 28. Qxg3 {[%emt 0:00:34]} Nxg3 {[%emt 0:00:00]} 29. Kxg3 {[%emt 0:00:00]} Rd2 {[%emt 0:00:00]} 30. Bd3 {[%emt 0:01:55]} c4 {[%emt 0:02:30]} 31. Bf1 {[%emt 0:03:13]} Rxb2 {[%emt 0:01:30]} 32. Re2 {[%emt 0:00:08]} Rb1 {[%emt 0:00:30]} 33. Rf2 {[%emt 0:01:32]} Rc1 {[%emt 0:00:30]} 34. Kf4 {[%emt 0:00:58]} Rxc3 {[%emt 0:00:30]} 35. Ke5 {[%emt 0:00:06]} Re3+ {[%emt 0:01:30]} 36. Kd4 {[%emt 0:00:23]} Re6 {[%emt 0:00:30]} 37. g3 {[%emt 0:02:53]} Rf6 {[%emt 0:05:30]} 38. Bg2 {[%emt 0:01:12]} Rd6+ {[%emt 0:00:30]} 39. Kc3 {[%emt 0:00:35]} Rd3+ {[%emt 0:01:30]} 40. Kc2 {[%emt 0:00:10]} a5 {[%emt 0:01:30]} 41. f4 {[%emt 0:03:01]} Bxg2 {[%emt 0:01:30]} 42. Rxg2 {[%emt 0:00:07]} b4 {[%emt 0:00:30]} 43. g4 {[%emt 0:01:08]} Rf3 {[%emt 0:01:30]} 44. f5 {[%emt 0:00:38]} gxf5 {[%emt 0:01:30]} 45. gxf5+ {[%emt 0:00:06]} Kf6 {[%emt 0:00:00]} 46. Rh2 {[%emt 0:00:52]} Rxf5 {[%emt 0:01:00]} 47. Rxh7 {[%emt 0:00:14]} Rf2+ {[%emt 0:01:30]} 48. Kb1 {[%emt 0:00:08]} Kg6 {[%emt 0:00:00]} 49. Rh4 {[%emt 0:00:18]} c3 {[%emt 0:01:00]} 50. Rc4 {[%emt 0:00:26]} Rb2+ {[%emt 0:00:30]} 51. Ka1 {[%emt 0:00:34]} Rg2 {[%emt 0:05:03]} 52. Kb1 {[%emt 0:00:19]} Rb2+ {[%emt 0:03:45]} 53. Ka1 {[%emt 0:00:26]} a4 {[%emt 0:01:36]} 54. Rc5 {[%emt 0:01:12]} a3 {[%emt 0:01:27]} 55. Rc4 {[%emt 0:02:10]} c2 {[%emt 0:01:45]} 56. Rg4+ {[%emt 0:00:11]} Kf5 {[%emt 0:01:30]} 57. Rg1 {[%emt 0:00:09]} b3 {[%emt 0:02:22]} 58. axb3 {[%emt 0:00:24]} Rxb3 {[%emt 0:00:00]} 59. Rc1 {[%emt 0:01:23]} Rb1+ {[%emt 0:01:09]} 60. Rxb1 {[%emt 0:00:30]} cxb1=Q+ {[%emt 0:00:00]} 61. Kxb1 {[%emt 0:00:16]} Kg4 {[%emt 0:00:14]} 62. Ka2 {[%emt 0:00:30]} f5 {[%emt 0:00:30]} 63. Kxa3 {[%emt 0:00:00]} f4 {[%emt 0:00:00]} 64. Kb3 {[%emt 0:00:00]} f3 {[%emt 0:00:00]} 65. Kc4 {[%emt 0:00:00]} f2 {[%emt 0:00:00]} 66. Kd4 {[%emt 0:02:33]} f1=Q {[%emt 0:00:15]} 0-1

[Event "2nd Turkish League 2017"]
[Site "Konya"]
[Date "2017.07.23"]
[Round "9"]
[White "Rzayev, Bahruz"]
[Black "Tasci, Onur"]
[Result "1-0"]
[ECO "A39"]
[WhiteElo "2386"]
[BlackElo "1989"]
[Annotator "NA"]
[PlyCount "93"]
[EventType "team-tourn"]
[EventCountry "TUR"]
[SourceTitle "playchess.com"]
[Source "ChessBase"]
[SourceQuality "1"]
[TimeControl "5400+30"]

1. Nf3 {[%emt 0:00:30]} Nf6 {[%emt 0:01:00]} 2. g3 {[%emt 0:00:00]} g6 {[%emt 0:00:30]} 3. Bg2 {[%emt 0:00:00]} Bg7 {[%emt 0:00:30]} 4. O-O {[%emt 0:00:00]} c5 {[%emt 0:01:30]} 5. c4 {[%emt 0:01:00]} O-O {[%emt 0:00:30]} 6. Nc3 {[%emt 0:00:00]} Nc6 {[%emt 0:00:30]} 7. d4 {[%emt 0:00:00]} cxd4 {[%emt 0:01:30]} 8. Nxd4 {[%emt 0:00:30]} Qb6 {[%emt 0:04:30] LiveBook: 150 Games} 9. Ndb5 {[%emt 0:10:30]} a6 {[%emt 0:06:30]} 10. Be3 {[%emt 0:00:30]} Qa5 {[%emt 0:00:30]} 11. Na3 {[%emt 0:00:30]} Qh5 {[%emt 0:08:30]} 12. Bd2 {[%emt 0:18:30]} d6 {[%emt 0:02:30]} 13. e4 {[%emt 0:00:30]} Bg4 {[%emt 0:02:30]} 14. f3 {[%emt 0:00:00]} Bd7 $11 {[%emt 0:05:30]} 15. Be3 {[%emt 0:02:00]} Rac8 {[%emt 0:05:30]} 16. Qd2 {[%emt 0:04:30]} Qa5 {[%emt 0:04:30]} 17. g4 {[%emt 0:07:30]} Be6 {[%emt 0:05:30]} 18. Qe1 {[%emt 0:26:30]} Qb4 {[%emt 0:06:30]} 19. Rf2 {[%emt 0:04:30]} Bxc4 {[%emt 0:06:30]} 20. Nxc4 {[%emt 0:01:30]} Qxc4 {[%emt 0:00:00]} 21. g5 {[%emt 0:00:00]} Nd7 {[%emt 0:02:00]} 22. Nd5 {[%emt 0:00:00]} e6 {[%emt 0:04:30]} 23. b3 {[%emt 0:01:30]} Qb5 {[%emt 0:01:30]} 24. Bf1 {[%emt 0:00:00]} Qa5 {[%emt 0:01:30]} 25. Ne7+ {[%emt 0:00:00]} Kh8 {[%emt 0:01:30]} 26. Nxc8 {[%emt 0:00:00]} Qe5 {[%emt 0:05:30]} 27. Rd1 {[%emt 0:00:00]} Rxc8 {[%emt 0:00:30]} 28. Qd2 {[%emt 0:00:30]} Nf8 {[%emt 0:01:30]} 29. Qxd6 {[%emt 0:00:30]} Qc3 {[%emt 0:00:00]} 30. Qc5 {[%emt 0:01:30]} Ne5 {[%emt 0:01:00]} 31. Qxc3 {[%emt 0:01:30]} Rxc3 {[%emt 0:00:00]} 32. Re1 {[%emt 0:00:30]} Nfd7 {[%emt 0:02:00]} 33. Kg2 {[%emt 0:00:30]} f6 {[%emt 0:01:47]} 34. gxf6 {[%emt 0:02:24]} Bxf6 {[%emt 0:00:09]} 35. Rd2 {[%emt 0:00:03]} Bh4 {[%emt 0:00:42]} 36. Ree2 {[%emt 0:01:18]} Rxe3 {[%emt 0:03:45]} 37. Rxe3 {[%emt 0:00:30]} Bg5 {[%emt 0:00:29]} 38. Rxd7 {[%emt 0:00:13]} Nxd7 {[%emt 0:00:30]} 39. Rc3 {[%emt 0:00:00]} Bf4 {[%emt 0:00:16]} 40. Rc8+ {[%emt 0:01:02]} Kg7 {[%emt 0:00:30]} 41. Bc4 {[%emt 0:00:30]} Kf7 {[%emt 0:00:00]} 42. Rd8 {[%emt 0:00:00]} Ke7 {[%emt 0:00:30]} 43. Rc8 {[%emt 0:00:00]} Be5 {[%emt 0:00:00]} 44. h4 {[%emt 0:00:46]} Nb6 {[%emt 0:00:48]} 45. Rg8 {[%emt 0:01:09]} Nd7 {[%emt 0:00:06]} 46. f4 {[%emt 0:00:35]} Kf7 {[%emt 0:01:10]} 47. fxe5 {[%emt 0:00:08]} 1-0

[Event "2nd Turkish League 2017"]
[Site "Konya"]
[Date "2017.07.23"]
[Round "9"]
[White "Yagiz, Yasin Emrah"]
[Black "Hacioglu, Berkan"]
[Result "1-0"]
[ECO "A36"]
[WhiteElo "2172"]
[BlackElo "1915"]
[Annotator "NA"]
[PlyCount "63"]
[EventType "team-tourn"]
[EventCountry "TUR"]
[SourceTitle "playchess.com"]
[Source "ChessBase"]
[SourceQuality "1"]
[TimeControl "5400+30"]

1. c4 {[%emt 0:00:30]} c5 {[%emt 0:01:00]} 2. Nc3 {[%emt 0:00:30]} Nc6 {[%emt 0:00:30]} 3. g3 {[%emt 0:00:30]} g6 {[%emt 0:00:30]} 4. Bg2 {[%emt 0:00:30]} Bg7 {[%emt 0:00:30]} 5. e3 {[%emt 0:00:30]} Nf6 {[%emt 0:03:30]} 6. Nge2 {[%emt 0:00:30]} O-O {[%emt 0:00:30]} 7. O-O {[%emt 0:00:00]} d6 {[%emt 0:01:30]} 8. a3 {[%emt 0:01:00]} Rb8 {[%emt 0:09:30]} 9. b4 {[%emt 0:07:30] A36: Symmetrical English vs ...g6: 4 Bg2 Bg7} (9. Rb1 e5 10. b4 Be6 11. Qb3 Ne7 12. Nd5 cxb4 13. axb4 b5 14. Nec3 bxc4 15. Qxc4 Qd7 16. Nxf6+ Bxf6 {0-1 (51) Maghsoodloo,P (2447)-Dalir,A (2297) Hamedan 2015}) 9... Ne5 {[%emt 0:09:30]} 10. d3 {[%emt 0:01:30]} a6 {[%emt 0:04:30]} 11. f4 $146 {[%emt 0:02:30]} ({Predecessor:} 11. Rb1 cxb4 12. axb4 b5 13. cxb5 axb5 14. Nf4 Bb7 15. Ra1 Bxg2 16. Kxg2 {0-1 (76) Moeller,H (1597)-Grund,S (1791) Hannover 2014}) 11... Ned7 {[%emt 0:04:30]} 12. Rb1 {[%emt 0:06:30]} cxb4 {[%emt 0:19:30]} 13. Rxb4 {[%emt 0:03:30]} Qc7 {[%emt 0:06:30]} 14. h3 {[%emt 0:04:30]} b6 {[%emt 0:00:30]} 15. Kh2 {[%emt 0:00:30]} Bb7 {[%emt 0:00:30]} 16. e4 {[%emt 0:00:30]} e6 {[%emt 0:01:30]} 17. Be3 {[%emt 0:03:30]} Ba8 {[%emt 0:10:30]} 18. Qd2 {[%emt 0:00:30]} Rfd8 {[%emt 0:01:30]} 19. g4 {[%emt 0:04:30]} Nf8 {[%emt 0:03:38]} 20. Rfb1 {[%emt 0:09:30]} N6d7 {[%emt 0:00:22]} 21. Kh1 {[%emt 0:03:30]} Nc5 {[%emt 0:02:45]} 22. Ng3 $14 {[%emt 0:05:30]} a5 {[%emt 0:01:35]} 23. R4b2 {[%emt 0:06:30]} Bxc3 {[%emt 0:01:22]} 24. Qxc3 {[%emt 0:00:30]} Na4 {[%emt 0:00:30]} 25. Qf6 {[%emt 0:00:30]} Nxb2 {[%emt 0:01:10]} 26. Bd4 {[%emt 0:00:30]} e5 {[%emt 0:00:36]} 27. fxe5 {[%emt 0:01:30]} dxe5 {[%emt 0:04:21]} 28. Bxe5 {[%emt 0:01:30]} Qxe5 {[%emt 0:00:30]} 29. Qxe5 {[%emt 0:00:30]} Nxd3 {[%emt 0:00:00]} 30. Qc3 {[%emt 0:01:30]} Nf4 {[%emt 0:00:14]} 31. h4 {[%emt 0:03:30]} Rd3 {[%emt 0:01:01]} 32. Qe5 {[%emt 0:00:30]} 1-0

[Event "2nd Turkish League 2017"]
[Site "Konya"]
[Date "2017.07.23"]
[Round "9"]
[White "Kerem, Halil Ozgun"]
[Black "Bori, Ekin Sukru"]
[Result "1/2-1/2"]
[ECO "A37"]
[WhiteElo "2074"]
[BlackElo "1597"]
[Annotator "NA"]
[PlyCount "61"]
[EventType "team-tourn"]
[EventCountry "TUR"]
[SourceTitle "playchess.com"]
[Source "ChessBase"]
[SourceQuality "1"]
[TimeControl "5400+30"]

1. Nf3 {[%emt 0:00:30]} c5 {[%emt 0:02:00]} 2. g3 {[%emt 0:00:30]} g6 {[%emt 0:01:30]} 3. Bg2 {[%emt 0:00:30]} Bg7 {[%emt 0:00:00]} 4. c4 {[%emt 0:00:00]} Nc6 {[%emt 0:00:00]} 5. Nc3 {[%emt 0:00:00]} d6 {[%emt 0:01:30]} 6. O-O {[%emt 0:00:00]} e5 {[%emt 0:00:30]} 7. a3 {[%emt 0:00:00]} Nge7 {[%emt 0:02:30]} 8. d3 {[%emt 0:01:30] LiveBook: 342 Games} O-O $11 {[%emt 0:01:30]} 9. Rb1 {[%emt 0:00:30]} a5 {[%emt 0:01:30]} 10. Bd2 {[%emt 0:00:30]} Rb8 {[%emt 0:05:30]} 11. Ne1 {[%emt 0:05:30]} Bd7 {[%emt 0:15:30]} 12. Nc2 {[%emt 0:07:30]} Nd4 {[%emt 0:03:30]} 13. b4 {[%emt 0:09:30]} axb4 {[%emt 0:00:30]} 14. axb4 {[%emt 0:00:30]} Bc6 {[%emt 0:01:30]} 15. Nxd4 {[%emt 0:21:30]} cxd4 {[%emt 0:02:30]} 16. Nd5 {[%emt 0:12:30]} Nxd5 {[%emt 0:01:30]} 17. cxd5 {[%emt 0:01:30]} Bb5 {[%emt 0:00:30]} 18. Rc1 {[%emt 0:00:30]} Qd7 {[%emt 0:01:30]} 19. Qc2 {[%emt 0:00:30]} Rbc8 {[%emt 0:03:30]} 20. Qa2 {[%emt 0:01:30]} f5 {[%emt 0:02:30]} 21. f3 {[%emt 0:04:30]} b6 {[%emt 0:07:30]} 22. Rxc8 {[%emt 0:02:30]} Rxc8 {[%emt 0:00:30]} 23. Rc1 {[%emt 0:00:00]} Rxc1+ {[%emt 0:03:30]} 24. Bxc1 {[%emt 0:00:00]} Ba4 {[%emt 0:00:00]} 25. Qc4 {[%emt 0:00:30]} Bb5 {[%emt 0:00:00]} 26. Qa2 {[%emt 0:00:30]} Ba4 {[%emt 0:00:30]} 27. Qc4 {[%emt 0:01:30]} Bb5 {[%emt 0:00:00]} 28. Qa2 {[%emt 0:04:30]} Ba4 {[%emt 0:00:00]} 29. Qc4 {[%emt 0:00:30]} Bb5 {[%emt 0:00:30]} 30. Qa2 {[%emt 0:00:30]} Ba4 {[%emt 0:00:30]} 31. Qc4 {[%emt 0:00:00]} 1/2-1/2

[Event "2nd Turkish League 2017"]
[Site "Konya"]
[Date "2017.07.23"]
[Round "9"]
[White "Bayrak, Asli"]
[Black "Salt, Ilayda"]
[Result "1-0"]
[ECO "C02"]
[WhiteElo "2056"]
[BlackElo "1544"]
[Annotator "NA"]
[PlyCount "95"]
[EventType "team-tourn"]
[EventCountry "TUR"]
[SourceTitle "playchess.com"]
[Source "ChessBase"]
[SourceQuality "1"]
[TimeControl "5400+30"]

1. e4 {[%emt 0:00:30]} e6 {[%emt 0:01:00]} 2. d4 {[%emt 0:00:30]} d5 {[%emt 0:00:30]} 3. e5 {[%emt 0:00:00]} c5 {[%emt 0:00:00]} 4. c3 {[%emt 0:00:00]} cxd4 {[%emt 0:04:00]} 5. cxd4 {[%emt 0:00:00]} Nc6 {[%emt 0:00:00]} 6. Nf3 {[%emt 0:02:00]} Bd7 {[%emt 0:01:00]} 7. Nc3 {[%emt 0:00:30]} Rc8 {[%emt 0:01:30]} 8. Be2 {[%emt 0:03:30]} Nge7 {[%emt 0:01:30]} 9. O-O {[%emt 0:02:30]} Nf5 {[%emt 0:02:30]} 10. a3 {[%emt 0:02:30] C02: French: Advance Variation} Na5 {[%emt 0:04:30]} (10... a6 $11 {remains equal.} 11. Rb1 h6 12. Kh1 b5 13. Be3 Na5 14. Bd3 g6 15. Bc1 Nh4 16. Ne1 Nc4 17. Ne2 Nf5 18. Nc2 Na5 {1-0 (37) Rapport,R (2671)-Sandipan,C (2585) Abu Dhabi 2015}) 11. Bd3 $146 {[%emt 0:07:30]} ({Predecessor:} 11. Bb5 Bxb5 12. Nxb5 a6 13. Bg5 Qb6 14. Rc1 Rxc1 15. Qxc1 Nc6 {0-1 (15) Moser,L-Brennenstuhl,O Germany 1997}) 11... Nh4 {[%emt 0:09:30]} 12. Ng5 {[%emt 0:01:30]} g6 {[%emt 0:17:30]} 13. g3 {[%emt 0:08:30]} h6 {[%emt 0:02:30]} 14. Nh3 {[%emt 0:12:30]} Nf5 {[%emt 0:03:30]} 15. Bxf5 {[%emt 0:07:30]} gxf5 {[%emt 0:00:30]} 16. Nf4 {[%emt 0:02:30]} Be7 {[%emt 0:03:30]} 17. Qh5 {[%emt 0:00:30]} Nb3 {[%emt 0:06:30]} 18. Rb1 {[%emt 0:05:30]} Nxd4 {[%emt 0:07:30]} 19. Rd1 {[%emt 0:06:30]} Nb3 {[%emt 0:03:30]} 20. Ncxd5 {[%emt 0:00:30]} Nxc1 {[%emt 0:12:12]} 21. Rbxc1 $16 {[%emt 0:01:30]} Rxc1 {[%emt 0:01:09]} 22. Rxc1 {[%emt 0:00:00]} Bg5 {[%emt 0:05:21]} 23. h4 {[%emt 0:07:00]} Bxf4 {[%emt 0:04:43]} 24. Nxf4 {[%emt 0:00:30]} Kf8 {[%emt 0:00:30]} 25. Qd1 {[%emt 0:01:30]} Ke8 {[%emt 0:04:00]} 26. Nh5 {[%emt 0:00:30]} Bc6 {[%emt 0:01:01]} 27. Nf6+ {[%emt 0:01:30]} Ke7 {[%emt 0:00:08]} 28. b4 {[%emt 0:11:11]} a6 {[%emt 0:01:14]} 29. Qc2 {[%emt 0:08:32]} Qc7 {[%emt 0:00:56]} 30. Qc5+ {[%emt 0:01:25]} Kd8 {[%emt 0:00:43]} 31. a4 {[%emt 0:00:31]} Qe7 {[%emt 0:01:25]} 32. Rd1+ {[%emt 0:00:38]} Bd5 {[%emt 0:00:29]} 33. Qa7 {[%emt 0:02:09]} Qc7 {[%emt 0:01:33]} 34. Qa8+ {[%emt 0:00:14]} Qc8 {[%emt 0:00:21]} 35. Qxc8+ {[%emt 0:00:30]} Kxc8 {[%emt 0:00:30]} 36. Nxd5 {[%emt 0:00:30]} exd5 {[%emt 0:00:30]} 37. Rxd5 {[%emt 0:00:00]} Re8 {[%emt 0:00:00]} 38. Kg2 {[%emt 0:00:03]} Re6 {[%emt 0:00:00]} 39. Kf3 {[%emt 0:00:00]} Kc7 {[%emt 0:01:44]} 40. Kf4 {[%emt 0:00:07]} Kc6 {[%emt 0:00:20]} 41. Rc5+ {[%emt 0:00:06]} Kb6 {[%emt 0:00:00]} 42. Kxf5 {[%emt 0:00:34]} Rg6 {[%emt 0:00:33]} 43. a5+ {[%emt 0:00:35]} Ka7 {[%emt 0:00:30]} 44. Rc7 {[%emt 0:00:00]} Rg8 {[%emt 0:00:30]} 45. Rxf7 {[%emt 0:00:13]} Rd8 {[%emt 0:00:03]} 46. Ke6 {[%emt 0:01:09]} Rd4 {[%emt 0:00:16]} 47. Rf4 {[%emt 0:00:00]} Rd2 {[%emt 0:00:59]} 48. Kf7 {[%emt 0:00:07]} 1-0